bitfinex/quotes_ETHUSD_20251221
["timestamp","ask_amount","ask_price","bid_price","bid_amount"]
[1766360520209,3.32506248,3007.5,3006.7,0.71544]
[1766360520431,0.3687,3007.8,3007.1,4.18132442]
[1766360520740,0.3687,3008.0,3007.4,2.05]
[1766360520929,3.3262858,3008.2,3007.8,2.05]
[1766360520930,0.002,3008.2,3007.8,2.05]
[1766360521118,3.32330007,3009.1,3007.7,4.18132442]
[1766360521119,0.3687,3008.7,3008.0,2.05]
[1766360521524,3.32380509,3008.6,3008.0,2.05]
[1766360521743,3.69250509,3008.6,3008.0,2.05]
[1766360521948,6.64761018,3008.6,3008.0,2.05]
[1766360522143,0.3687,3008.5,3008.0,2.05]
[1766360522533,1.27770127,3008.5,3007.9,0.433]
[1766360522716,0.3687,3008.1,3007.4,2.3904]
[1766360522915,0.3687,3008.0,3007.4,2.3904]
[1766360523220,2.4425,3007.9,3007.2,2.05]
[1766360523420,2.4425,3007.9,3007.3,2.8234]
[1766360523765,0.3687,3007.9,3007.3,2.8234]
[1766360524743,3.69328693,3007.9,3007.3,2.8234]
[1766360525049,3.69328693,3007.9,3007.3,2.8244]
[1766360526349,0.002,3008.2,3007.4,2.0492]
[1766360526646,0.002,3008.2,3007.3,0.71644]
[1766360526647,0.433,3008.5,3007.9,2.409]
[1766360527036,0.433,3008.5,3008.0,2.409]
[1766360527723,0.433,3008.5,3008.0,2.0492]
[1766360527929,0.775,3008.5,3008.0,2.0492]
[1766360528743,2.0738,3008.7,3008.0,2.409]
[1766360528945,2.4158,3008.7,3008.1,0.2409]
[1766360529346,0.342,3008.6,3008.1,0.2409]
[1766360529926,0.433,3008.7,3008.1,2.409]
[1766360530328,0.775,3008.7,3008.1,2.409]
[1766360530729,4.09870716,3008.7,3008.1,2.409]
[1766360530929,0.775,3008.7,3008.1,2.409]
[1766360531558,0.433,3008.7,3008.1,2.409]
[1766360531761,0.433,3008.7,3008.2,2.409]
[1766360532864,3.75669547,3008.7,3008.2,2.409]
[1766360533039,3.75670261,3008.7,3008.2,2.409]
[1766360533244,4.09870261,3008.7,3008.1,0.2409]
[1766360533444,6.17250261,3008.7,3008.1,0.2409]
[1766360533645,0.342,3008.6,3008.1,0.2409]
[1766360535341,0.342,3008.6,3008.1,2.2901]
[1766360535541,0.342,3008.6,3008.1,2.6499]
[1766360537065,2.0758,3008.7,3008.1,2.6499]
[1766360537647,0.342,3008.6,3008.0,0.001]
[1766360537966,0.342,3009.1,3008.4,2.409]
[1766360538538,0.342,3009.1,3008.6,0.3598]
[1766360538845,0.342,3009.1,3008.6,2.409]
[1766360539168,3.66528472,3009.1,3008.6,2.409]
[1766360539948,4.27280803,3009.1,3008.4,0.3598]
[1766360540146,0.4033,3008.9,3008.3,2.0186]
[1766360540343,2.5121,3008.9,3008.3,2.0186]
[1766360540967,2.5121,3008.9,3008.0,0.434]
[1766360540968,2.5121,3008.5,3008.0,0.434]
[1766360543642,0.4033,3008.5,3008.0,0.434]
[1766360543875,2.1088,3008.8,3008.1,2.0186]
[1766360544060,0.4033,3008.7,3008.1,2.0186]
[1766360544383,0.4033,3008.7,3008.1,2.4039]
[1766360544577,3.32336324,3009.0,3008.2,0.3853]
[1766360544740,3.32336324,3009.0,3008.2,2.4039]
[1766360544741,0.4033,3008.8,3008.2,2.4039]
[1766360545347,0.4033,3008.7,3008.0,0.434]
[1766360545544,0.4033,3008.7,3008.0,2.8379]
[1766360545743,0.4033,3008.7,3008.1,2.68769]
[1766360546288,0.4033,3008.6,3008.1,0.28379]
[1766360546576,0.4033,3008.5,3008.0,0.001]
[1766360547643,2.1088,3008.4,3007.6,2.4039]
[1766360547851,2.5121,3008.0,3007.3,2.4049]
[1766360548061,2.5121,3008.0,3007.4,0.433]
[1766360548576,2.5121,3008.4,3007.5,2.4039]
[1766360548784,2.5121,3008.4,3007.7,2.0186]
[1766360549680,0.433,3008.7,3008.1,2.0186]
[1766360549870,0.433,3008.7,3008.1,2.4039]
[1766360550072,0.4033,3008.6,3008.1,2.4039]
[1766360550279,0.4033,3008.6,3007.9,2.4039]
[1766360550582,0.4033,3008.4,3007.8,0.433]
[1766360550751,0.433,3008.7,3007.3,0.26249]
[1766360550752,0.4033,3008.1,3007.3,0.26249]
[1766360550949,0.433,3008.7,3007.4,0.433]
[1766360550950,2.5121,3008.0,3007.4,0.433]
[1766360551184,2.5121,3008.0,3007.5,0.40206592]
[1766360551354,0.4033,3008.0,3007.5,0.40206592]
[1766360552184,2.5121,3007.8,3007.4,0.433]
[1766360552985,2.5121,3007.8,3007.3,0.001]
[1766360553188,3.32454004,3008.0,3007.3,2.0196]
[1766360553385,0.4033,3008.0,3007.3,2.4049]
[1766360553605,0.4033,3008.0,3007.4,0.3853]
[1766360553759,0.4033,3008.0,3007.4,2.4039]
[1766360554170,3.72777741,3008.0,3007.4,2.4039]
[1766360554370,0.4033,3008.0,3007.4,2.4039]
[1766360554889,3.72776985,3008.0,3007.4,2.4039]
[1766360555093,6.74055581,3008.0,3007.4,2.4039]
[1766360555695,0.4451,3007.6,3007.3,0.001]
[1766360555892,2.1225,3007.7,3007.3,0.001]
[1766360556393,0.4451,3007.8,3007.3,0.001]
[1766360557483,3.75750648,3008.0,3007.3,2.5207]
[1766360557699,5.16754439,3008.0,3007.3,2.5207]
[1766360558202,7.29004439,3008.0,3007.3,2.5207]
[1766360559138,0.4451,3007.8,3007.3,0.001]
[1766360559296,8.04699446,3008.0,3007.2,0.21]
[1766360559297,2.5676,3007.6,3007.2,0.21]
[1766360559496,0.4451,3007.4,3007.1,0.3580134]
[1766360559808,2.5676,3007.4,3006.8,2.9527]
[1766360560009,2.5676,3007.4,3007.3,0.001]
[1766360560205,2.5676,3007.4,3006.8,2.9527]
[1766360560206,5.44763134,3007.4,3006.8,0.433]
[1766360560407,2.5676,3007.3,3006.8,0.433]
[1766360560911,0.4451,3007.1,3006.7,0.001]
[1766360561088,2.5676,3007.1,3006.7,0.001]
[1766360562020,5.89306939,3007.1,3006.7,0.001]
[1766360563486,2.5676,3006.9,3006.4,0.434]
[1766360564083,2.1225,3006.8,3006.2,0.001]
[1766360564290,0.4451,3006.7,3006.2,0.001]
[1766360564899,2.5676,3006.7,3006.2,0.001]
[1766360570316,0.8781,3006.9,3006.3,0.4479]
[1766360570521,0.8781,3006.9,3006.3,2.5197]
[1766360571716,0.4451,3006.8,3006.2,0.001]
[1766360571911,0.4451,3006.7,3006.2,0.001]
[1766360572110,2.5676,3006.7,3006.2,0.25327]
[1766360572419,2.5676,3006.7,3006.2,0.001]
[1766360572592,2.1225,3006.7,3006.2,0.001]
[1766360572795,2.1225,3006.4,3006.0,0.001]
[1766360573302,2.1225,3007.2,3006.1,2.0718]
[1766360573594,2.5676,3007.0,3006.3,2.5197]
[1766360573796,2.5676,3006.9,3006.3,2.5197]
[1766360574233,2.1225,3006.9,3006.3,2.5197]
[1766360574425,0.4451,3006.8,3006.3,2.0718]
[1766360574730,3.77094459,3006.8,3006.3,2.0718]
[1766360574905,5.89344459,3006.8,3006.1,2.5197]
[1766360575306,6.32644459,3006.8,3006.1,2.5197]
[1766360575728,5.89344459,3006.8,3006.1,2.5197]
[1766360576026,6.32644459,3006.8,3006.1,2.5197]
[1766360576356,3.0006,3006.8,3006.1,2.5197]
[1766360576623,2.5676,3006.4,3006.0,0.001]
[1766360577017,2.1225,3006.6,3006.0,0.001]
[1766360577214,2.5676,3006.6,3006.0,2.5207]
[1766360577417,0.4451,3006.5,3006.0,2.5207]
[1766360577725,0.4451,3006.5,3006.0,0.001]
[1766360577726,2.5676,3006.5,3006.0,0.001]
[1766360581024,0.435,3006.7,3006.0,0.001]
[1766360581220,0.435,3006.7,3006.1,2.0718]
[1766360581440,0.435,3006.7,3006.1,2.5197]
[1766360581809,3.76090978,3006.7,3006.1,2.5197]
[1766360582030,4.20600978,3006.7,3006.1,2.5197]
[1766360582238,6.32850978,3006.7,3006.1,2.5197]
[1766360582534,2.5676,3006.1,3005.5,0.434]
[1766360582902,2.5676,3006.1,3005.5,2.9537]
[1766360583736,2.5676,3006.1,3006.0,0.001]
[1766360586431,0.4451,3006.1,3006.0,0.001]
[1766360586636,3.1215,3006.3,3006.0,0.001]
[1766360586835,0.532,3006.3,3006.0,0.001]
[1766360587033,0.433,3006.4,3006.0,0.001]
[1766360587337,2.6885,3006.4,3006.0,0.001]
[1766360587541,3.66586849,3006.4,3006.0,0.001]
[1766360587936,0.532,3006.3,3006.0,0.001]
[1766360589447,3.13386849,3006.4,3006.0,0.001]
[1766360590142,6.46013352,3006.4,3006.0,0.001]
[1766360590345,3.66586849,3006.4,3006.0,0.001]
[1766360590842,6.99212521,3006.4,3006.0,0.001]
[1766360591044,3.66586849,3006.4,3006.0,0.001]
[1766360591415,6.01644895,3006.7,3006.0,2.6666]
[1766360591613,0.532,3006.6,3006.0,2.6666]
[1766360591819,0.002,3006.4,3006.0,2.6666]
[1766360592912,0.002,3006.4,3006.1,4.1887093]
[1766360593143,2.1585,3006.7,3006.2,2.1339]
[1766360593144,0.002,3006.7,3006.2,2.1339]
[1766360593348,0.002,3006.7,3006.0,4.05645734]
[1766360593349,0.532,3007.4,3006.5,2.6656]
[1766360593651,3.32491022,3007.6,3006.4,4.1887093]
[1766360593652,2.6885,3007.3,3006.6,2.6656]
[1766360593950,1.00111245,3007.7,3006.7,4.6217093]
[1766360594145,1.00111245,3007.7,3006.8,0.433]
[1766360594146,0.532,3007.1,3006.8,0.433]
[1766360594368,2.6885,3007.1,3006.4,0.5317]
[1766360594553,2.6885,3007.1,3005.9,4.35242703]
[1766360594554,0.1738,3004.8,3004.5,0.001]
[1766360594721,0.002,3004.0,3003.9,0.001]
[1766360595050,1.3332,3004.6,3003.9,0.5317]
[1766360595255,0.6068,3004.8,3004.2,2.6656]
[1766360595436,0.1738,3004.8,3004.3,0.68543093]
[1766360595638,0.1738,3004.8,3004.4,2.6656]
[1766360595836,0.99978504,3004.7,3004.4,2.6656]
[1766360596371,3.68828504,3004.7,3003.7,0.001]
[1766360596540,3.32834082,3004.5,3003.9,0.433]
[1766360598150,3.32834082,3004.5,3004.0,2.6656]
[1766360598348,4.3279105,3004.7,3004.0,2.97546]
[1766360598546,4.3279105,3004.7,3004.1,2.6656]
[1766360599230,3.32812546,3004.7,3004.1,2.6656]
[1766360604769,3.76103988,3004.8,3004.2,0.5317]
[1766360604932,3.76103988,3004.8,3004.3,2.6656]
[1766360605139,3.32786728,3005.0,3004.6,2.1339]
[1766360605456,3.32786728,3005.0,3004.6,2.6656]
[1766360606967,3.32786728,3005.0,3004.3,0.26656]
[1766360606968,0.49207978,3005.2,3004.7,0.5317]
[1766360607143,0.05907978,3005.2,3004.8,2.1339]
[1766360607346,0.05907978,3005.2,3004.9,2.6656]
[1766360607769,0.05907978,3005.2,3004.7,0.434]
[1766360607985,2.6885,3005.0,3004.3,2.6656]
[1766360608139,2.1565,3005.0,3003.6,0.001]
[1766360608334,0.532,3004.7,3004.0,3.1006]
[1766360608570,2.6885,3004.7,3004.0,3.1006]
[1766360608873,2.6885,3004.7,3004.1,2.6656]
[1766360609067,2.6885,3004.9,3004.1,2.6656]
[1766360611468,3.32800851,3004.8,3004.1,2.6656]
[1766360611677,6.01650851,3004.8,3004.1,2.6656]
[1766360612167,6.44950851,3004.8,3004.1,2.6656]
[1766360613342,2.6885,3004.7,3004.1,2.6656]
[1766360613553,2.6885,3004.7,3004.0,0.001]
[1766360613766,2.1565,3004.7,3004.0,0.001]
[1766360613964,2.6885,3004.6,3004.0,0.001]
[1766360614150,2.6885,3004.6,3003.9,2.9268]
[1766360614353,2.6885,3004.6,3003.9,2.6656]
[1766360614578,2.6885,3004.6,3003.9,2.97566]
[1766360614740,2.6885,3004.6,3003.9,0.31006]
[1766360614944,2.6885,3004.6,3004.0,2.6656]
[1766360615147,4.73894983,3004.8,3004.0,2.1339]
[1766360615376,4.73894983,3004.8,3004.2,2.6552]
[1766360615576,0.002,3004.7,3004.2,2.6552]
[1766360616355,0.92541663,3004.7,3004.2,2.6552]
[1766360616756,2.7128,3004.6,3004.0,0.001]
[1766360616968,2.1484,3004.5,3004.0,0.001]
[1766360617479,3.3284516,3004.4,3004.0,0.001]
[1766360617779,3.7614516,3004.4,3003.7,0.001]
[1766360617987,0.5644,3004.1,3003.7,0.001]
[1766360618171,0.33284516,3004.3,3003.7,0.001]
[1766360618172,2.7128,3004.0,3003.7,0.001]
[1766360619451,2.7128,3004.0,3003.1,7.52430214]
[1766360619452,0.433,3004.0,3003.5,2.6552]
[1766360619662,0.433,3004.0,3003.5,2.68849448]
[1766360619851,0.433,3004.0,3003.6,0.5555]
[1766360620058,0.433,3004.0,3003.6,2.6552]
[1766360621183,0.433,3004.0,3002.8,0.001]
[1766360621352,9.80360324,3004.0,3003.2,0.5555]
[1766360621684,6.4746948,3004.0,3003.2,2.68849781]
[1766360622254,6.4746948,3004.0,3003.2,2.6552]
[1766360622489,7.46838041,3004.0,3003.2,2.6552]
[1766360623152,10.79728885,3004.0,3003.2,2.6552]
[1766360623350,2.1484,3003.9,3003.2,2.6552]
[1766360623680,6.04188679,3003.9,3003.2,2.6552]
[1766360625664,4.19442547,3003.8,3003.1,0.001]
[1766360625862,0.5644,3003.6,3003.1,0.001]
[1766360626055,3.1458,3003.5,3003.1,0.001]
[1766360628086,2.7128,3003.4,3003.1,0.001]
[1766360628290,2.7128,3003.4,3002.8,0.001]
[1766360628497,2.7128,3003.1,3002.8,0.001]
[1766360629086,0.433,3003.1,3002.8,0.001]
[1766360632601,2.7128,3003.0,3002.7,0.001]
[1766360632813,2.7128,3003.0,3002.4,2.6552]
[1766360634313,0.5644,3003.9,3002.9,2.0997]
[1766360634517,0.5644,3003.9,3003.0,2.6552]
[1766360634518,2.1484,3003.7,3003.0,2.6552]
[1766360634702,2.7128,3003.6,3003.0,2.6552]
[1766360634868,2.7128,3003.6,3003.0,0.5555]
[1766360635073,2.7128,3003.6,3002.8,2.6552]
[1766360635399,2.7128,3003.6,3002.8,2.92072]
[1766360636214,0.433,3003.8,3002.8,2.92072]
[1766360636437,3.32944897,3003.5,3002.8,2.6552]
[1766360636575,2.5814,3003.4,3002.8,2.6552]
[1766360637307,0.433,3003.4,3002.7,0.5555]
[1766360638992,0.433,3003.4,3002.9,0.5555]
[1766360641220,0.433,3003.4,3002.9,2.6552]
[1766360646233,0.435,3003.4,3002.9,2.6552]
[1766360646435,0.435,3003.4,3002.9,2.92082]
[1766360648637,0.435,3003.4,3003.0,2.7603]
[1766360648836,0.435,3003.4,3003.1,0.6296]
[1766360649141,0.435,3003.4,3003.1,2.7603]
[1766360652535,0.433,3003.7,3002.9,0.26562]
[1766360652737,0.433,3003.7,3003.3,0.6296]
[1766360652911,0.433,3003.7,3003.3,2.7603]
[1766360654544,0.433,3003.7,3002.8,0.435]
[1766360654716,0.433,3003.7,3003.1,2.1307]
[1766360655046,0.433,3003.7,3003.3,2.1307]
[1766360655451,0.433,3003.7,3003.4,2.7603]
[1766360656112,0.433,3003.7,3003.2,0.6296]
[1766360656312,1.0583,3003.7,3003.2,2.7603]
[1766360656509,0.433,3003.7,3003.2,3.03633]
[1766360656754,0.433,3003.7,3003.2,0.90563]
[1766360656922,0.433,3003.7,3003.3,2.1307]
[1766360657447,0.6253,3003.4,3002.8,0.001]
[1766360657749,2.134,3003.1,3002.5,2.7603]
[1766360657919,0.6253,3003.0,3002.5,2.7603]
[1766360658246,0.6253,3003.0,3002.6,0.27713]
[1766360660628,1.0583,3003.3,3002.7,2.1307]
[1766360660823,1.0583,3003.3,3002.7,2.7603]
[1766360662039,2.7593,3003.2,3002.6,0.27713]
[1766360662223,0.6253,3003.1,3002.6,0.27713]
[1766360662950,0.6253,3003.1,3002.6,0.001]
[1766360666433,2.7593,3003.0,3002.6,0.001]
[1766360666623,3.32989759,3003.1,3002.6,0.001]
[1766360666830,2.7593,3002.7,3002.2,2.1307]
[1766360667256,2.7593,3003.0,3002.3,2.1307]
[1766360667426,2.7593,3003.0,3002.3,2.7603]
[1766360667427,2.7593,3002.9,3002.3,2.7603]
[1766360668190,0.60891976,3003.0,3001.9,0.001]
[1766360668328,2.7593,3002.7,3001.9,0.001]
[1766360668650,6.08963985,3002.7,3001.9,0.001]
[1766360668856,6.08963985,3002.7,3002.1,2.1307]
[1766360669554,2.7593,3002.6,3002.1,2.1307]
[1766360669759,2.7593,3002.6,3002.0,0.6296]
[1766360672266,2.7593,3002.6,3002.0,2.7632]
[1766360672462,2.7593,3002.6,3002.0,3.08302]
[1766360672671,2.7593,3002.6,3002.1,2.1336]
[1766360673867,2.7593,3002.6,3002.1,2.7549]
[1766360676173,0.433,3002.8,3002.3,2.0999]
[1766360676472,3.2222,3002.8,3002.3,2.0999]
[1766360677155,3.76323228,3002.8,3002.2,0.6591]
[1766360677348,0.644,3002.7,3002.2,0.6591]
[1766360677678,2.7892,3002.7,3002.2,0.6591]
[1766360680274,2.7892,3002.7,3002.2,2.759]
[1766360682879,6.11953882,3002.7,3002.2,2.759]
[1766360686277,0.646,3003.1,3002.6,2.759]
[1766360689357,0.002,3003.1,3002.6,2.759]
[1766360689963,0.002,3003.1,3002.5,2.0999]
[1766360690158,0.002,3003.1,3002.7,2.759]
[1766360700061,2.7892,3003.0,3002.4,6.95539693]
[1766360700390,0.002,3003.1,3002.6,2.0999]
[1766360700572,0.002,3003.1,3002.7,2.0999]
[1766360701081,0.434,3003.3,3002.8,4.22969918]
[1766360701284,0.002,3003.4,3003.0,2.759]
[1766360702363,0.002,3003.4,3002.9,0.42296992]
[1766360702764,2.7892,3003.3,3002.9,0.42296992]
[1766360702965,2.7892,3003.3,3002.8,2.759]
[1766360705157,2.7912,3003.3,3002.8,2.759]
[1766360705363,0.646,3003.3,3002.9,2.0526]
[1766360705658,0.002,3003.3,3002.9,2.7443]
[1766360712196,0.002,3003.3,3002.7,3.76431615]
[1766360712404,0.002,3003.3,3002.8,0.37643162]
[1766360712574,0.002,3003.3,3002.9,2.7443]
[1766360712775,0.002,3003.3,3003.0,2.0526]
[1766360713276,0.002,3003.4,3002.9,2.7443]
[1766360713468,0.434,3003.6,3002.9,2.0526]
[1766360713675,0.434,3003.6,3003.0,0.24290316]
[1766360713898,0.434,3003.6,3003.2,2.7443]
[1766360714204,0.002,3003.3,3003.2,2.7443]
[1766360718125,0.002,3003.3,3003.0,0.6917]
[1766360718323,0.002,3003.3,3003.0,2.7443]
[1766360718626,0.002,3003.3,3003.1,2.7443]
[1766360720904,0.002,3003.3,3003.1,0.6917]
[1766360721101,0.002,3003.3,3003.2,2.0526]
[1766360721275,0.002,3003.3,3003.2,2.7443]
[1766360725910,0.35855766,3003.6,3003.0,4.19639693]
[1766360726126,0.434,3004.0,3003.5,2.0526]
[1766360726322,0.434,3004.0,3003.6,2.7443]
[1766360726608,3.76289904,3004.0,3003.6,2.7443]
[1766360727715,0.434,3004.0,3003.6,2.7443]
[1766360728026,0.6844,3004.1,3003.6,0.27443]
[1766360728027,2.6381,3004.1,3003.6,0.27443]
[1766360728182,1.9537,3004.1,3003.5,1.9541]
[1766360728381,2.6381,3004.0,3003.5,1.9541]
[1766360728979,5.96705241,3004.0,3003.5,1.9541]
[1766360729483,5.96705241,3004.0,3003.2,0.434]
[1766360729484,0.6844,3003.7,3003.2,0.434]
[1766360729695,2.6381,3003.7,3003.1,2.6642]
[1766360729896,2.6381,3003.7,3003.2,0.26642]
[1766360730418,2.6381,3003.7,3003.2,2.22052]
[1766360731112,2.6381,3003.7,3003.2,2.93062]
[1766360731717,2.6401,3003.7,3003.2,2.93062]
[1766360736689,0.6864,3003.7,3003.3,2.1197]
[1766360737614,2.6727,3003.7,3003.3,2.1197]
[1766360739043,2.6727,3003.7,3003.2,0.98482]
[1766360739227,2.6727,3003.7,3003.2,0.7184]
[1766360739635,6.00192728,3003.7,3003.1,0.001]
[1766360739920,2.6897,3003.5,3003.1,0.001]
[1766360740092,5.31752728,3003.7,3003.1,2.1207]
[1766360740293,6.02092728,3003.7,3003.1,2.8391]
[1766360740494,2.6917,3003.7,3003.1,2.8391]
[1766360740821,6.02092934,3003.7,3003.1,2.8391]
[1766360741927,0.7034,3003.6,3003.1,2.8391]
[1766360742298,6.0190427,3003.6,3003.1,2.8391]
[1766360742824,2.6897,3003.6,3003.1,2.8391]
[1766360743530,0.37643162,3004.1,3003.1,0.7194]
[1766360743712,0.7034,3003.9,3003.4,2.1197]
[1766360743906,0.7034,3003.9,3003.4,2.2634]
[1766360744508,0.7034,3003.9,3003.4,2.1197]
[1766360744509,2.6897,3003.9,3003.4,2.1197]
[1766360744703,0.7034,3003.9,3003.4,2.1197]
[1766360744898,0.7034,3003.9,3003.4,2.75121579]
[1766360745098,6.01853097,3004.1,3003.5,2.1197]
[1766360745304,6.01853097,3004.1,3003.5,2.2643]
[1766360746005,0.7034,3004.0,3003.5,2.2643]
[1766360746224,2.6897,3004.0,3003.5,2.2643]
[1766360749438,0.002,3004.1,3003.5,2.1197]
[1766360749637,0.002,3004.1,3003.6,2.2681]
[1766360750939,0.002,3004.1,3003.8,2.1197]
[1766360751159,0.433,3004.3,3003.8,0.1502]
[1766360751314,3.7615626,3004.3,3003.9,2.1197]
[1766360751722,4.4649626,3004.3,3003.9,2.1197]
[1766360752241,1.1364,3004.3,3003.9,2.1197]
[1766360752812,0.433,3004.3,3003.9,2.49669]
[1766360753140,1.9883,3004.4,3003.9,2.49669]
[1766360753516,5.31677835,3004.4,3003.9,2.49669]
[1766360753718,6.02017835,3004.4,3003.9,2.1197]
[1766360754547,2.6917,3004.4,3003.9,2.1197]
[1766360755444,0.002,3004.3,3003.9,2.1197]
[1766360755648,0.002,3004.3,3004.0,0.1526]
[1766360755814,0.002,3004.4,3004.1,2.1197]
[1766360756019,0.002,3004.4,3004.1,2.2703]
[1766360756618,0.002,3004.4,3003.6,7.52475346]
[1766360756823,0.435,3004.6,3004.0,0.1515]
[1766360757017,0.435,3004.6,3004.1,2.2712]
[1766360758222,0.435,3004.6,3004.1,2.272]
[1766360758726,0.002,3004.6,3004.2,0.1531]
[1766360759052,0.002,3004.6,3004.2,2.2728]
[1766360759236,0.002,3004.6,3004.2,2.50008]
[1766360760452,0.7034,3004.2,3003.7,1.11438829]
[1766360760657,2.6897,3004.2,3003.8,0.434]
[1766360760843,2.6897,3004.2,3003.6,2.2737]
[1766360761041,2.6897,3004.2,3003.8,0.434]
[1766360761229,0.7034,3004.2,3003.8,0.70485]
[1766360761429,0.7034,3004.2,3003.8,2.5537]
[1766360762135,1.9863,3004.1,3003.3,0.001]
[1766360762331,0.433,3004.0,3003.3,2.1207]
[1766360762559,0.433,3004.0,3003.4,2.48737]
[1766360763234,1.1364,3004.0,3003.8,0.001]
[1766360763433,3.1227,3004.0,3003.8,0.001]
[1766360764558,2.6897,3003.9,3003.4,2.33177]
[1766360764725,1.9863,3003.9,3003.4,0.21207]
[1766360764925,1.9863,3003.8,3003.3,0.001]
[1766360765132,0.433,3004.0,3003.3,0.001]
[1766360765352,0.6949,3003.8,3003.3,0.001]
[1766360765560,2.708,3003.6,3003.3,0.001]
[1766360766460,2.708,3003.6,3003.0,2.0964044]
[1766360766752,2.0131,3003.6,3003.1,0.26901044]
[1766360766958,2.708,3003.5,3003.1,0.26901044]
[1766360767529,0.433,3004.0,3003.1,0.26901044]
[1766360767735,2.708,3003.8,3003.1,0.1602]
[1766360768444,2.708,3003.8,3003.2,2.0984]
[1766360769663,2.708,3003.8,3003.2,2.2601]
[1766360769858,2.708,3003.7,3003.2,2.0984]
[1766360770072,3.32911785,3003.8,3003.0,2.2618]
[1766360770255,0.6949,3003.6,3003.0,0.001]
[1766360770438,2.708,3003.3,3003.0,0.001]
[1766360771265,0.6949,3003.3,3003.0,0.001]
[1766360772537,2.708,3003.5,3003.0,0.001]
[1766360776170,2.0131,3003.5,3003.0,0.001]
[1766360776474,2.708,3003.4,3003.0,0.001]
[1766360776770,2.708,3003.4,3003.0,0.25444]
[1766360777145,6.4703442,3003.6,3003.0,2.35284]
[1766360777345,0.433,3003.6,3003.0,0.25444]
[1766360777553,2.708,3003.5,3003.0,0.25444]
[1766360777944,2.708,3003.5,3003.0,2.35284]
[1766360778567,0.433,3003.6,3003.0,2.52074]
[1766360779088,3.141,3003.6,3003.0,2.52074]
[1766360779471,0.433,3003.6,3003.1,0.252174]
[1766360779773,7.52209772,3004.4,3003.1,0.252174]
[1766360779774,3.142,3004.2,3003.6,2.0984]
[1766360780273,0.434,3004.2,3003.7,0.1692]
[1766360780575,0.002,3004.3,3003.8,2.2676]
[1766360780875,0.002,3004.3,3003.9,0.22676]
[1766360781672,0.002,3004.3,3003.9,2.32516]
[1766360787089,0.002,3004.3,3003.9,0.22676]
[1766360787292,0.002,3004.3,3003.8,2.0957]
[1766360788889,0.002,3004.3,3003.9,0.1752]
[1766360792096,0.002,3004.3,3003.9,2.1017]
[1766360793077,0.002,3004.3,3004.0,0.1774]
[1766360793276,0.002,3004.3,3004.0,2.1039]
[1766360793797,0.002,3004.3,3004.0,1.9265]
[1766360794502,0.99990167,3004.5,3004.0,2.13695]
[1766360794674,0.002,3004.6,3004.2,2.1025]
[1766360795065,0.002,3004.6,3004.0,0.21045]
[1766360795263,0.7068,3004.5,3004.0,2.21545]
[1766360795500,2.0604,3004.6,3004.1,2.439]
[1766360795798,0.002,3004.6,3004.2,0.264945]
[1766360795966,0.002,3004.7,3004.4,2.005]
[1766360797506,0.002,3004.7,3004.4,5.33340344]
[1766360797670,0.002,3004.7,3004.5,0.0332834]
[1766360798585,0.002,3004.7,3004.5,3.36158773]
[1766360798786,0.002,3004.7,3004.6,0.53665877]
[1766360800401,2.0604,3005.0,3004.6,0.53665877]
[1766360800706,2.0604,3005.0,3004.5,2.005]
[1766360800707,2.7672,3005.0,3004.5,2.005]
[1766360801005,0.7068,3004.9,3004.5,2.005]
[1766360801202,2.7652,3004.9,3004.5,2.005]
[1766360804210,2.7672,3004.9,3004.5,2.005]
[1766360805401,2.74168864,3004.9,3004.5,2.005]
[1766360805601,0.002,3005.4,3004.7,2.005]
[1766360807493,0.002,3005.4,3004.9,2.005]
[1766360809416,0.7068,3005.3,3004.5,0.5333442]
[1766360809586,2.7652,3005.2,3004.8,0.434]
[1766360809785,2.7652,3005.2,3004.6,5.33320431]
[1766360809986,2.7652,3005.2,3004.6,5.76720431]
[1766360810212,0.002,3005.4,3004.3,2.005]
[1766360810213,0.7068,3005.1,3004.3,2.005]
[1766360810419,2.7652,3004.9,3004.4,0.6609945]
[1766360811014,2.7652,3004.9,3004.5,3.32833048]
[1766360811678,2.7652,3004.9,3004.4,5.99443136]
[1766360811904,0.7068,3004.9,3004.4,5.99443136]
[1766360812119,0.7068,3004.9,3004.5,2.006]
[1766360813203,0.7068,3004.9,3004.5,2.60554314]
[1766360815405,0.7068,3004.9,3004.5,5.93385872]
[1766360815735,2.0584,3005.1,3004.5,5.93385872]
[1766360815904,2.7652,3005.1,3004.5,5.93385872]
[1766360816253,2.7652,3005.1,3004.6,0.0332823]
[1766360816553,3.76489176,3005.3,3004.7,2.73404818]
[1766360816699,3.76489176,3005.3,3004.7,2.005]
[1766360817013,2.7652,3005.1,3004.5,2.006]
[1766360817738,0.7068,3005.0,3004.5,2.006]
[1766360817949,2.7652,3005.0,3004.5,2.006]
[1766360818303,2.7652,3004.8,3004.5,0.001]
[1766360818499,2.7652,3004.7,3004.5,0.001]
[1766360819227,0.7068,3004.7,3004.5,0.001]
[1766360820237,2.7652,3004.7,3004.5,0.001]